bitfinex/quotes_SOLUSD_20241118
["timestamp","ask_amount","ask_price","bid_price","bid_amount"]
[1731889002993,26.66015947,236.48,236.42,0.09367462]
[1731889003206,26.66015947,236.5,236.44,0.09367462]
[1731889003514,26.66015947,236.52,236.45,23.776884]
[1731889004308,26.66015947,236.56,236.49,23.87055862]
[1731889004515,26.66015947,236.62,236.55,23.87055862]
[1731889004681,23.0139,236.72,236.58,23.776884]
[1731889004682,26.66015947,236.65,236.58,23.776884]
[1731889005791,26.66015947,236.65,236.57,23.87055862]
[1731889005980,26.66015947,236.65,236.58,14.794]
[1731889006601,26.66015947,236.61,236.58,10.5672]
[1731889006802,26.66015947,236.61,236.58,14.794]
[1731889007137,20.0,236.58,236.46,6.2883]
[1731889007420,26.66015947,236.51,236.47,14.8009]
[1731889008123,26.66015947,236.59,236.51,0.09367462]
[1731889008434,26.66015947,236.55,236.47,14.8009]
[1731889008612,26.66015947,236.55,236.48,0.09367462]
[1731889008797,26.66015947,236.57,236.51,23.87055862]
[1731889009204,26.66015947,236.59,236.53,0.09367462]
[1731889010020,26.66015947,236.59,236.54,4.2276]
[1731889010244,26.66015947,236.57,236.52,10.5695]
[1731889010426,26.66015947,236.55,236.52,10.5695]
[1731889010831,26.66015947,236.55,236.47,14.8009]
[1731889011022,26.66015947,236.51,236.47,14.8009]
[1731889011331,26.66015947,236.53,236.47,14.8009]
[1731889011525,4.2261,236.62,236.47,14.8009]
[1731889011526,26.66015947,236.51,236.47,10.5721]
[1731889011729,26.66015947,236.49,236.47,10.5721]
[1731889012422,26.66015947,236.49,236.43,4.2295]
[1731889012624,26.66015947,236.47,236.43,4.2295]
[1731889012809,26.66015947,236.51,236.44,0.09367462]
[1731889013141,26.66015947,236.51,236.43,14.8034]
[1731889013316,26.66015947,236.51,236.44,0.09367462]
[1731889013835,26.66015947,236.51,236.44,23.87055862]
[1731889014042,26.66015947,236.47,236.43,14.8034]
[1731889014412,26.66015947,236.49,236.43,14.8034]
[1731889014914,26.66015947,236.49,236.43,10.5739]
[1731889015121,26.66015947,236.53,236.44,50.78169809]
[1731889015531,26.66015947,236.51,236.44,50.43704347]
[1731889015722,26.66015947,236.49,236.44,23.776884]
[1731889015922,26.66015947,236.47,236.44,23.776884]
[1731889016941,26.66015947,236.52,236.4,6.6658]
[1731889017120,26.66015947,236.42,236.38,10.576]
[1731889017323,26.66015947,236.44,236.38,10.576]
[1731889017836,26.66015947,236.48,236.42,0.09367462]
[1731889018042,26.66015947,236.5,236.42,0.09367462]
[1731889018533,26.66015947,236.5,236.42,23.87055862]
[1731889018928,26.66015947,236.52,236.44,23.87055862]
[1731889019129,26.66015947,236.54,236.47,0.09367462]
[1731889020431,33.05335947,236.64,236.45,62.60845947]
[1731889020432,26.66015947,236.58,236.51,0.21916462]
[1731889020632,26.66015947,236.6,236.52,23.776884]
[1731889021019,26.66015947,236.58,236.52,23.776884]
[1731889021339,26.66015947,236.62,236.55,0.34465462]
[1731889021551,26.66015947,236.64,236.57,27.00481409]
[1731889021748,26.66015947,236.66,236.59,0.09367462]
[1731889022845,26.66015947,236.66,236.61,23.776884]
[1731889023028,26.66015947,236.64,236.61,23.776884]
[1731889024346,26.66015947,236.64,236.61,28.003084]
[1731889024829,26.66015947,236.66,236.61,28.003084]
[1731889025028,26.66015947,236.66,236.61,38.568984]
[1731889025745,26.66015947,236.7,236.63,26.66015947]
[1731889025952,26.66015947,236.7,236.64,23.776884]
[1731889026333,26.66015947,236.72,236.66,23.776884]
[1731889026661,26.66015947,236.74,236.67,27.00481409]
[1731889026957,26.66015947,236.81,236.74,23.776884]
[1731889028036,26.66015947,236.81,236.74,28.000684]
[1731889028635,26.66015947,236.85,236.78,26.66015947]
[1731889028931,0.1,236.97,236.84,26.66015947]
[1731889028932,26.66015947,236.91,236.84,26.66015947]
[1731889029185,26.66015947,236.89,236.83,23.776884]
[1731889029502,26.66015947,236.91,236.83,24.027864]
[1731889030192,26.66015947,236.91,236.85,23.776884]
[1731889030889,26.66015947,236.89,236.85,23.776884]
[1731889031082,26.66015947,236.91,236.85,23.776884]
[1731889031487,43.02255947,237.0,236.86,0.25098]
[1731889031488,26.66015947,236.93,236.86,0.25098]
[1731889031699,26.66015947,236.95,236.87,26.66015947]
[1731889031892,26.66015947,236.93,236.88,23.776884]
[1731889032201,30.87955947,237.0,236.84,10.5556]
[1731889032202,26.66015947,236.89,236.84,10.5556]
[1731889032420,26.66015947,236.85,236.8,24.027864]
[1731889032704,26.66015947,236.85,236.81,4.2227]
[1731889032907,4.2197,236.98,236.73,6.2884]
[1731889032908,26.66015947,236.83,236.73,6.2884]
[1731889033134,26.66015947,236.81,236.74,41.44405947]
[1731889033291,16.3624,236.91,236.74,41.44405947]
[1731889033292,26.66015947,236.83,236.77,0.09367462]
[1731889034103,26.66015947,236.87,236.81,24.12153862]
[1731889034307,26.66015947,236.89,236.81,24.027864]
[1731889034909,26.66015947,236.87,236.81,24.027864]
[1731889035343,4.2197,236.98,236.81,24.027864]
[1731889035344,26.66015947,236.89,236.82,14.87277462]
[1731889035621,26.66015947,236.93,236.86,0.09367462]
[1731889035782,4.2195,236.99,236.88,26.66015947]
[1731889036107,26.66015947,236.92,236.84,26.66015947]
[1731889036283,26.66015947,236.88,236.83,23.776884]
[1731889036486,26.66015947,236.92,236.85,23.776884]
[1731889036697,26.66015947,236.9,236.85,23.776884]
[1731889036922,26.66015947,236.9,236.84,0.25098]
[1731889037102,26.66015947,236.92,236.85,23.776884]
[1731889037610,26.66015947,236.92,236.87,23.776884]
[1731889038701,26.66015947,236.88,236.84,4.2222]
[1731889038936,26.66015947,236.85,236.83,23.776884]
[1731889039223,26.66015947,236.9,236.84,0.25098]
[1731889039514,26.66015947,237.0,236.76,26.66015947]
[1731889039515,26.66015947,236.94,236.87,0.25098]
[1731889039900,26.66015947,236.94,236.87,26.91113947]
[1731889040099,26.66015947,236.94,236.88,23.776884]
[1731889040626,26.66015947,236.98,236.92,0.25098]
[1731889040832,26.66015947,237.0,236.94,23.776884]
[1731889041010,26.66015947,237.02,236.94,23.776884]
[1731889041398,26.66015947,237.02,236.96,23.776884]
[1731889041811,26.66015947,237.04,236.96,23.776884]
[1731889043113,26.66015947,237.06,236.98,23.776884]
[1731889043622,0.4670731,237.16,237.03,27.00481409]
[1731889043833,27.12723257,237.16,237.08,23.776884]
[1731889044347,26.66015947,237.14,237.08,23.776884]
[1731889045208,26.66015947,237.14,237.08,27.994684]
[1731889046034,26.66015947,237.12,237.05,26.66015947]
[1731889046207,0.4670731,237.16,237.02,10.5475]
[1731889046208,26.66015947,237.08,237.02,10.5475]
[1731889046404,4.2169,237.14,237.0,6.499]
[1731889046405,16.40353986,237.06,237.0,10.7183]
[1731889046605,16.40353986,237.08,237.01,0.09367462]
[1731889046906,16.40353986,237.1,237.03,0.09367462]
[1731889047108,16.40353986,237.12,237.05,4.2185]
[1731889047335,16.40353986,237.14,237.06,16.49721448]
[1731889047702,16.40353986,237.14,237.07,23.902374]
[1731889047917,16.40353986,237.12,237.07,23.776884]
[1731889048245,16.40353986,237.1,237.05,10.5462]
[1731889049529,16.40353986,237.1,237.06,23.776884]
[1731889050028,16.87061296,237.16,237.1,0.09367462]
[1731889050227,16.87061296,237.16,237.13,23.776884]
[1731889050228,0.4670731,237.16,237.13,23.776884]
[1731889050439,0.4670731,237.16,237.14,16.40353986]
[1731889050732,0.4670731,237.16,237.15,23.776884]
[1731889051310,0.4670731,237.16,237.15,24.12153862]
[1731889051531,0.4670731,237.16,237.15,44.74177848]
[1731889051750,16.40353986,237.31,237.24,23.776884]
[1731889051928,16.40353986,237.32,237.25,0.12549]
[1731889052126,16.40353986,237.28,237.24,23.776884]
[1731889052325,16.40353986,237.25,237.2,0.12549]
[1731889052716,16.40353986,237.23,237.19,23.776884]
[1731889052841,16.40353986,237.23,237.18,0.25098]
[1731889053013,16.40353986,237.25,237.18,0.12549]
[1731889053221,16.40353986,237.25,237.18,16.65451986]
[1731889053443,16.40353986,237.25,237.19,38.532884]
[1731889054423,26.61098847,237.26,237.19,38.532884]
[1731889054693,26.61098847,237.28,237.2,26.95564309]
[1731889054827,26.61098847,237.28,237.21,23.776884]
[1731889055530,26.61098847,237.26,237.2,23.776884]
[1731889055718,26.61098847,237.26,237.2,27.992584]
[1731889056643,26.61098847,237.24,237.2,23.776884]
[1731889057441,26.61098847,237.22,237.14,10.5421]
[1731889057625,26.61098847,237.22,237.1,26.61098847]
[1731889057626,26.61098847,237.17,237.11,4.2173]
[1731889058018,26.61098847,237.15,237.09,10.5444]
[1731889058343,26.61098847,237.15,237.08,10.2238]
[1731889058642,26.61098847,237.19,237.1,26.61098847]
[1731889059010,26.61098847,237.21,237.12,26.61098847]
[1731889059410,26.61098847,237.19,237.1,26.61098847]
[1731889059723,26.61098847,237.17,237.11,28.119574]
[1731889061331,26.61098847,237.22,237.15,0.25098]
[1731889061622,26.61098847,237.29,237.21,23.776884]
[1731889061830,26.61098847,237.29,237.22,26.61098847]
[1731889062118,26.61098847,237.29,237.23,23.776884]
[1731889062706,26.61098847,237.29,237.23,27.992084]
[1731889063529,26.61098847,237.31,237.23,27.992084]
[1731889064519,26.61098847,237.27,237.21,14.7543]
[1731889064930,26.61098847,237.27,237.22,23.776884]
[1731889065099,26.61098847,237.23,237.19,4.2159]
[1731889065294,26.61098847,237.23,237.16,34.317984]
[1731889065715,26.61098847,237.23,237.16,10.5411]
[1731889066398,26.61098847,237.23,237.16,14.7576]
[1731889067007,26.61098847,237.21,237.16,14.7576]
[1731889067507,0.1,237.29,237.16,10.5411]
[1731889067508,26.61098847,237.19,237.16,10.5411]
[1731889068130,26.61098847,237.19,237.06,21.0915]
[1731889068131,26.61098847,237.19,237.11,37.15438847]
[1731889068332,4.2154,237.23,236.89,42.67227234]
[1731889068333,26.61098847,237.15,237.07,26.61098847]
[1731889068528,26.61098847,237.15,237.01,16.964155]
[1731889068529,26.61098847,237.13,237.08,10.2239]
[1731889069104,26.61098847,237.13,237.08,20.7688]
[1731889069511,26.61098847,237.11,237.04,20.1532]
[1731889069716,26.61098847,237.09,237.04,4.2185]
[1731889070334,26.61098847,237.05,236.97,37.16078847]
[1731889070506,26.61098847,237.01,236.97,10.5498]
[1731889070735,26.61098847,236.99,236.92,10.552]
[1731889071330,26.61098847,236.95,236.92,10.552]
[1731889071739,26.61098847,236.95,236.9,6.1019]
[1731889071918,26.61098847,236.95,236.87,14.7758]
[1731889072115,26.61098847,236.97,236.89,26.61098847]
[1731889072436,26.61098847,236.94,236.87,41.38678847]
[1731889072735,26.61098847,236.96,236.89,26.61098847]
[1731889073110,26.61098847,236.96,236.9,4.2211]
[1731889073529,0.1,237.08,236.93,26.61098847]
[1731889073530,26.61098847,237.02,236.93,26.61098847]
[1731889073733,26.61098847,237.04,236.95,26.61098847]
[1731889074035,26.61098847,237.04,236.96,23.776884]
[1731889074340,26.61098847,237.04,236.91,0.09367462]
[1731889074341,26.61098847,236.98,236.91,50.63885247]
[1731889074631,26.61098847,237.0,236.94,23.776884]
[1731889074834,26.61098847,237.0,236.91,50.63885247]
[1731889075140,26.61098847,237.0,236.92,14.7728]
[1731889075434,26.61098847,237.0,236.93,23.902374]
[1731889075735,26.61098847,237.02,236.94,0.12549]
[1731889076033,26.61098847,237.0,236.93,23.776884]
[1731889076517,26.61098847,236.98,236.93,23.776884]
[1731889076717,26.61098847,236.96,236.89,4.2212]
[1731889076923,26.61098847,236.94,236.87,4.2216]
[1731889077130,26.61098847,236.92,236.87,4.2216]
[1731889077547,26.61098847,236.92,236.86,10.5546]
[1731889077723,26.61098847,236.88,236.81,10.5569]
[1731889078050,26.61098847,236.83,236.81,10.5569]
[1731889078719,26.61098847,236.83,236.81,14.7796]
[1731889079034,26.61098847,236.83,236.82,23.776884]
[1731889079228,26.61098847,236.83,236.77,6.1019]
[1731889079436,26.61098847,236.85,236.77,36.93628847]
[1731889079633,26.61098847,236.79,236.75,10.81118635]
[1731889079822,26.61098847,236.79,236.75,4.2237]
[1731889080640,26.61098847,236.79,236.71,39.30151295]
[1731889080830,26.61098847,236.79,236.71,10.3264]
[1731889081139,26.61098847,236.79,236.71,36.93738847]
[1731889081528,26.61098847,236.79,236.71,47.49878847]
[1731889081728,26.61098847,236.84,236.75,26.61098847]
[1731889081933,26.61098847,236.88,236.79,26.61098847]
[1731889082249,26.61098847,236.81,236.71,27.47405405]
[1731889082446,0.1,236.89,236.71,27.47405405]
[1731889082741,26.61098847,236.77,236.71,16.6633]
[1731889083148,26.61098847,236.77,236.71,10.5614]
[1731889083451,26.61098847,236.79,236.71,41.39688847]
[1731889083645,26.61098847,236.81,236.71,41.39688847]
[1731889083822,26.61098847,236.87,236.79,26.61098847]
[1731889084017,26.61098847,236.89,236.82,23.776884]
[1731889084548,26.61098847,236.89,236.8,23.902374]
[1731889084745,26.61098847,236.91,236.83,26.61098847]
[1731889085046,26.61098847,236.93,236.86,23.776884]
[1731889085361,26.61098847,236.91,236.85,0.12549]
[1731889085548,26.61098847,236.93,236.87,23.776884]
[1731889085728,26.61098847,236.9,236.82,26.61098847]
[1731889085934,26.61098847,236.86,236.82,4.2225]
[1731889086347,26.61098847,236.92,236.84,26.61098847]
[1731889086644,26.61098847,236.9,236.85,23.776884]
[1731889087039,26.61098847,236.9,236.82,41.38998847]
[1731889087040,26.61098847,236.9,236.83,23.902374]
[1731889087440,26.61098847,236.88,236.83,23.776884]
[1731889088149,26.61098847,236.88,236.83,27.999184]
[1731889090145,0.09367462,236.94,236.77,10.5586]
[1731889090146,26.61098847,236.84,236.77,10.5586]
[1731889090324,16.44082925,236.79,236.76,0.09367462]
[1731889090526,16.44082925,236.87,236.78,16.44082925]
[1731889090736,16.44082925,236.87,236.8,16.44082925]
[1731889090957,16.44082925,236.87,236.76,14.87647462]
[1731889091447,16.44082925,236.87,236.78,0.09367462]
[1731889091743,16.44082925,236.87,236.76,0.09367462]
[1731889091744,16.44082925,236.81,236.76,0.09367462]
[1731889091958,4.2218,236.87,236.76,0.09367462]
[1731889091959,16.44082925,236.79,236.76,0.09367462]
[1731889093141,16.44082925,236.79,236.76,4.31727462]
[1731889093545,16.44082925,236.77,236.76,0.09367462]
[1731889095639,36.44082925,236.77,236.76,0.09367462]
[1731889095947,36.44082925,236.77,236.6,6.3282]
[1731889095948,0.1,236.74,236.6,6.3282]
[1731889096147,16.44082925,236.64,236.6,6.3282]
[1731889096526,16.44082925,236.64,236.6,10.5546]
[1731889096726,16.44082925,236.64,236.6,4.2264]
[1731889097431,16.44082925,236.68,236.6,23.776884]
[1731889097630,16.44082925,236.76,236.67,16.44082925]
[1731889097832,7.03884785,236.88,236.76,24.027864]
[1731889098056,7.03884785,236.88,236.87,16.44082925]
[1731889098350,4.2206,236.93,236.77,0.09367462]
[1731889098557,4.2206,236.93,236.74,24.027864]
[1731889098558,0.1,236.92,236.74,24.027864]
[1731889098744,0.2,236.92,236.74,24.027864]
[1731889098933,4.2206,236.93,236.75,0.09367462]
[1731889099140,4.3206,236.93,236.74,24.027864]
[1731889099356,16.44082925,236.85,236.77,23.902374]
[1731889099561,0.09367462,236.94,236.79,23.902374]
[1731889099562,16.44082925,236.87,236.79,23.902374]
[1731889099731,16.44082925,236.85,236.79,23.776884]
[1731889099934,16.44082925,236.83,236.79,23.776884]
[1731889100137,16.44082925,236.85,236.79,23.776884]
[1731889100335,26.69670263,236.9,236.81,26.69670263]
[1731889100648,26.69670263,236.86,236.78,14.7816]
[1731889100961,26.69670263,236.86,236.8,0.12549]
[1731889101260,26.69670263,236.88,236.8,0.12549]
[1731889101556,26.69670263,236.84,236.79,27.999784]
[1731889101756,26.69670263,236.86,236.79,65.25428663]
[1731889102142,26.69670263,236.88,236.81,26.69670263]
[1731889102452,26.69670263,236.88,236.82,23.776884]
[1731889102634,26.69670263,236.84,236.79,14.7807]
[1731889102839,26.69670263,236.84,236.8,23.776884]
[1731889103037,26.69670263,236.82,236.77,4.2234]
[1731889103351,26.69670263,236.8,236.75,4.2238]
[1731889103650,26.69670263,236.88,236.69,4.2248]
[1731889103651,26.69670263,236.76,236.69,4.2248]
[1731889103854,26.69670263,236.78,236.7,26.69670263]
[1731889104055,26.69670263,236.78,236.69,4.2248]
[1731889104056,26.69670263,236.76,236.69,4.2248]
[1731889104828,26.69670263,236.76,236.69,14.7871]
[1731889105353,26.69670263,236.74,236.69,14.7871]
[1731889105565,26.69670263,236.78,236.7,26.69670263]
[1731889105760,26.69670263,236.8,236.72,26.69670263]
[1731889106462,26.69670263,236.78,236.71,28.001384]
[1731889106640,26.69670263,236.76,236.71,28.001384]
[1731889106836,26.69670263,236.78,236.68,30.92170263]
[1731889107148,26.69670263,236.78,236.68,41.48440263]
[1731889107454,26.69670263,236.78,236.7,26.69670263]
[1731889107966,26.69670263,236.74,236.68,14.7877]
[1731889108256,26.69670263,236.7,236.61,4.2263]
[1731889108433,26.69670263,236.7,236.58,47.83110263]
[1731889108434,26.69670263,236.62,236.54,26.69670263]
[1731889108641,26.69670263,236.76,236.6,26.69670263]
[1731889108642,26.69670263,236.68,236.6,26.69670263]
[1731889109244,26.69670263,236.7,236.62,26.69670263]
[1731889109445,26.69670263,236.68,236.6,26.69670263]
[1731889109638,26.69670263,236.68,236.61,38.569084]
[1731889109860,26.69670263,236.7,236.62,26.69670263]
[1731889110034,26.69670263,236.76,236.68,23.776884]
[1731889111070,26.69670263,236.8,236.71,0.12549]
[1731889111241,26.69670263,236.82,236.75,23.776884]
[1731889111654,26.69670263,236.84,236.78,14.7816]
[1731889111851,26.69670263,236.86,236.78,41.47830263]
[1731889112051,26.69670263,236.86,236.78,26.69670263]
[1731889112251,26.69670263,236.86,236.77,23.776884]
[1731889112470,26.69670263,236.86,236.76,26.69670263]
[1731889112678,26.69670263,236.93,236.85,26.69670263]
[1731889113160,26.69670263,236.91,236.84,23.776884]
[1731889114076,26.69670263,236.91,236.85,4.222]
[1731889114778,0.09367462,236.94,236.88,23.776884]
[1731889114983,0.09367462,236.94,236.89,26.69670263]
[1731889115280,0.09367462,236.94,236.9,23.776884]
[1731889115578,0.09367462,236.94,236.91,26.69670263]
[1731889115760,0.09367462,236.94,236.92,23.776884]
[1731889116075,0.09367462,236.94,236.93,26.69670263]
[1731889116257,0.09367462,236.94,236.93,50.81824125]
[1731889117750,0.09367462,236.94,236.93,50.72456663]
[1731889118072,0.09367462,236.94,236.92,4.2208]
[1731889118551,0.09367462,236.94,236.93,26.69670263]
[1731889118978,0.09367462,236.94,236.92,4.2208]
[1731889119362,26.79037725,236.94,236.88,4.2215]
[1731889120058,26.79037725,236.94,236.86,6.658]
[1731889120262,26.69670263,236.92,236.87,10.5543]
[1731889120669,26.79037725,236.94,236.87,14.776]
[1731889120974,26.79037725,236.94,236.87,10.5543]
[1731889121281,26.69670263,236.88,236.81,10.5568]
[1731889121470,26.69670263,236.83,236.76,4.2236]
[1731889122185,26.69670263,236.79,236.71,26.69670263]
[1731889122362,26.69670263,236.79,236.7,4.2247]
[1731889122561,26.69670263,236.75,236.67,26.69670263]
[1731889122775,26.69670263,236.73,236.67,4.2251]
[1731889123158,26.69670263,236.73,236.67,14.7883]
[1731889123360,26.69670263,236.75,236.67,41.48500263]
[1731889123663,26.69670263,236.73,236.67,14.7883]
[1731889124070,26.69670263,236.77,236.67,41.48500263]
[1731889124387,26.69670263,236.75,236.67,41.48500263]
[1731889124885,26.69670263,236.73,236.67,14.7883]
[1731889125091,26.69670263,236.75,236.67,41.48500263]
[1731889125256,26.69670263,236.77,236.67,41.48500263]
[1731889125454,26.69670263,236.79,236.71,26.69670263]
[1731889125658,26.69670263,236.81,236.74,23.776884]
[1731889125859,26.69670263,236.83,236.74,23.776884]
[1731889126259,26.69670263,236.83,236.76,23.776884]
[1731889126465,26.69670263,236.87,236.79,26.69670263]
[1731889126668,26.69670263,236.87,236.8,23.776884]
[1731889127289,26.69670263,236.89,236.82,23.776884]
[1731889127764,26.69670263,236.87,236.8,23.776884]
[1731889127964,4.2211,236.91,236.77,26.69670263]
[1731889127965,26.69670263,236.85,236.78,23.776884]
[1731889128264,26.69670263,236.8,236.75,14.7834]
[1731889128694,26.69670263,236.78,236.71,26.69670263]
[1731889128986,26.69670263,236.78,236.69,26.69670263]
[1731889129287,26.69670263,236.8,236.71,26.69670263]
[1731889129886,26.69670263,236.82,236.74,23.776884]
[1731889130073,26.69670263,236.86,236.78,38.809464]
[1731889130270,26.69670263,236.88,236.8,23.776884]
[1731889130686,26.69670263,236.9,236.82,23.776884]
[1731889131071,26.69670263,236.88,236.82,23.776884]
[1731889131268,26.69670263,236.88,236.81,26.69670263]
[1731889131590,26.69670263,236.88,236.82,23.776884]
[1731889132492,26.69670263,236.88,236.82,27.999384]
[1731889133384,26.69670263,236.9,236.83,26.69670263]
[1731889133587,20.0,236.91,236.84,23.776884]
[1731889134177,26.79037725,236.94,236.85,26.69670263]
[1731889134380,0.09367462,236.94,236.88,24.027864]
[1731889134586,0.09367462,236.94,236.92,23.776884]
[1731889135489,26.79037725,236.94,236.92,23.776884]
[1731889135870,0.09367462,236.94,236.9,23.776884]
[1731889137465,20.0,236.91,236.81,4.2227]
[1731889137670,26.69670263,236.85,236.8,10.557]
[1731889137971,26.69670263,236.85,236.8,14.7799]
[1731889138286,20.0,236.91,236.76,4.2236]
[1731889138287,26.69670263,236.83,236.76,4.2236]
[1731889138792,26.69670263,236.81,236.76,4.2236]
[1731889139094,26.69670263,236.79,236.75,10.5595]
[1731889140384,26.69670263,236.79,236.7,26.69670263]
[1731889140586,0.1,236.84,236.67,4.2252]
[1731889140587,26.69670263,236.73,236.67,4.2252]
[1731889140789,26.69670263,236.71,236.67,4.2252]
[1731889141271,26.69670263,236.75,236.67,14.7884]
[1731889141595,162.4,236.85,236.67,10.5632]
[1731889141596,26.69670263,236.71,236.67,10.5632]
[1731889141807,26.69670263,236.69,236.67,10.5632]
[1731889142005,26.69670263,236.69,236.62,10.5653]
[1731889142180,26.69670263,236.66,236.62,10.5653]
[1731889142684,26.69670263,236.66,236.62,14.7914]
[1731889142894,26.69670263,236.66,236.6,4.2264]
[1731889143100,26.69670263,236.62,236.57,4.6939731]
[1731889143306,26.69670263,236.62,236.57,0.4670731]
[1731889143790,26.69670263,236.66,236.58,41.49070263]
[1731889144008,26.69670263,236.68,236.6,26.69670263]
[1731889144182,26.69670263,236.72,236.62,26.69670263]
[1731889144381,26.69670263,236.72,236.65,23.776884]
[1731889145580,26.69670263,236.72,236.65,28.002484]
[1731889145800,26.69670263,236.74,236.67,23.776884]
[1731889146087,26.69670263,236.72,236.67,23.776884]
[1731889146311,26.69670263,236.74,236.66,23.776884]
[1731889146706,26.69670263,236.74,236.67,26.69670263]
[1731889146910,26.69670263,236.74,236.68,23.776884]
[1731889147112,26.69670263,236.72,236.68,23.776884]
[1731889147309,26.69670263,236.72,236.67,23.776884]
[1731889147608,17.2737,236.83,236.66,4.2252]
[1731889147609,26.69670263,236.84,236.72,23.776884]
[1731889147818,26.69670263,236.84,236.77,23.776884]
[1731889147993,26.69670263,236.79,236.71,23.776884]
[1731889148187,26.69670263,236.75,236.71,23.776884]
[1731889148403,26.69670263,236.73,236.69,23.776884]
[1731889148588,26.69670263,236.73,236.66,14.7888]
[1731889149397,26.69670263,236.71,236.66,10.5636]
[1731889149604,26.69670263,236.69,236.6,10.566]
[1731889149913,26.69670263,236.69,236.61,26.69670263]
[1731889150406,26.69670263,236.73,236.63,26.69670263]
[1731889150805,20.607,236.78,236.63,26.69670263]
[1731889150806,26.69670263,236.71,236.63,26.69670263]
[1731889151110,26.69670263,236.69,236.61,50.81824125]
[1731889151417,26.69670263,236.69,236.63,23.776884]
[1731889151790,26.69670263,236.65,236.57,11.0346731]
[1731889152516,26.69670263,236.61,236.57,0.4670731]
[1731889153018,4.4249,236.69,236.57,0.4670731]
[1731889153019,26.69670263,236.59,236.57,0.4670731]
[1731889153803,30.92350263,236.59,236.57,0.4670731]
[1731889154089,20.0,236.58,236.57,0.4670731]
[1731889156317,26.69670263,236.59,236.57,0.4670731]
[1731889157525,30.92350263,236.59,236.57,0.4670731]
[1731889157701,26.69670263,236.59,236.57,0.4670731]
[1731889158418,30.92350263,236.59,236.57,0.4670731]
[1731889159535,20.0,236.58,236.57,0.4670731]
[1731889159819,20.25098,236.58,236.57,0.4670731]
[1731889160026,30.92350263,236.59,236.57,0.4670731]
[1731889160325,26.69670263,236.59,236.57,0.4670731]
[1731889161599,20.0,236.58,236.57,0.4670731]
[1731889162210,36.47338991,236.58,236.57,0.4670731]
[1731889163422,16.47338991,236.6,236.57,4.6940731]
[1731889163647,16.47338991,236.62,236.57,4.6940731]
[1731889164136,16.47338991,236.64,236.57,4.6940731]
[1731889164439,16.47338991,236.58,236.57,0.4670731]
[1731889164611,16.47338991,236.62,236.57,0.4670731]
[1731889165128,16.47338991,236.62,236.57,4.6940731]
[1731889165610,16.47338991,236.62,236.58,23.776884]
[1731889165814,16.47338991,236.66,236.58,40.25027391]
[1731889166017,16.6404,236.71,236.57,4.6940731]
[1731889166018,16.47338991,236.68,236.61,23.776884]
[1731889166231,16.47338991,236.66,236.58,16.47338991]
[1731889166436,16.47338991,236.6,236.58,23.776884]
[1731889166619,16.47338991,236.66,236.58,40.25027391]
[1731889167132,16.47338991,236.66,236.6,23.776884]
[1731889167710,16.47338991,236.62,236.59,10.5668]
[1731889170618,16.47338991,236.64,236.59,10.5668]
[1731889170822,16.47338991,236.66,236.6,23.776884]
[1731889171139,20.0,236.65,236.6,23.776884]
[1731889171327,16.47338991,236.64,236.6,23.776884]
[1731889171920,16.47338991,236.64,236.6,28.003284]
[1731889172125,16.47338991,236.66,236.6,28.003284]
[1731889172431,16.47338991,236.68,236.6,55.04297391]
[1731889173738,16.47338991,236.66,236.6,38.569584]
[1731889174350,16.47338991,236.64,236.57,0.4670731]
[1731889174551,16.47338991,236.64,236.57,4.6939731]
[1731889175029,16.47338991,236.68,236.6,16.47338991]
[1731889175343,16.47338991,236.72,236.62,16.47338991]
[1731889175550,16.47338991,236.72,236.63,23.776884]
[1731889175726,16.47338991,236.64,236.57,11.0346731]
[1731889175928,16.47338991,236.64,236.6,23.776884]
[1731889176249,4.2244,236.72,236.6,23.776884]
[1731889176250,16.47338991,236.66,236.6,23.776884]
[1731889176941,16.47338991,236.68,236.6,40.25027391]
[1731889177125,16.47338991,236.74,236.66,16.47338991]
[1731889177330,16.47338991,236.74,236.67,23.776884]
[1731889177654,16.47338991,236.72,236.67,23.776884]
[1731889178026,16.47338991,236.74,236.68,23.776884]
[1731889178226,16.47338991,236.78,236.68,40.25027391]
[1731889178743,16.47338991,236.78,236.69,0.25098]
[1731889179259,16.47338991,236.8,236.74,16.47338991]
[1731889179460,16.47338991,236.82,236.75,23.776884]
[1731889180042,16.47338991,236.84,236.77,23.776884]
[1731889181161,16.47338991,236.89,236.8,16.47338991]
[1731889181360,0.09367462,236.94,236.84,23.776884]
[1731889181361,16.47338991,236.91,236.84,23.776884]
[1731889182265,16.47338991,236.91,236.86,23.776884]
[1731889183346,16.47338991,236.87,236.84,23.776884]